fUSD/lending_fUSD_20240117
["ID","MTS","AMOUNT","RATE_DAILY","PERIOD"]
[311905308,1705491054778,-500.0,0.00023561,2]
[311905309,1705491054788,-1800.52,0.00023561,2]
[311905310,1705491054798,-500.0,0.00023561,2]
[311905311,1705491054807,-161.92,0.00023561,2]
[311905312,1705491054817,-1033.23,0.00023561,2]
[311905313,1705491054827,-500.0,0.00023561,2]
[311905314,1705491054837,-1604.59,0.00023561,2]
[311905315,1705491054847,-4555.16,0.00023561,2]
[311905316,1705491054858,-660.71,0.00023561,2]
[311905317,1705491054867,-500.0,0.00023561,2]
[311905318,1705491054876,-17619.33,0.00023561,2]
[311905319,1705491054885,-500.0,0.00023561,2]
[311905320,1705491054897,-499.46,0.00023561,2]
[311905321,1705491054908,-500.0,0.00023561,2]
[311905322,1705491054918,-1051.77,0.00023561,2]
[311905323,1705491054928,-500.0,0.00023561,2]
[311905324,1705491054937,-500.0,0.00023561,2]
[311905325,1705491054946,-500.0,0.00023561,2]
[311905326,1705491054955,-958.11,0.00023561,2]
[311905327,1705491054965,-564.29,0.00023561,2]
[311905328,1705491054976,-799.67,0.00023561,2]
[311905329,1705491054986,-500.0,0.00023561,2]
[311905330,1705491054998,-500.0,0.00023561,2]
[311905331,1705491055008,-315.8,0.00023561,2]
[311905332,1705491055018,-291.72,0.00023561,2]
[311905333,1705491055029,-707.76,0.00023561,2]
[311905334,1705491055038,-500.0,0.00023561,2]
[311905335,1705491055048,-500.0,0.00023561,2]
[311905336,1705491055056,-500.0,0.00023561,2]
[311905337,1705491055066,-620.01,0.00023561,2]
[311905338,1705491055075,-2941.81,0.00023561,2]
[311905339,1705491055085,-707.93,0.00023561,2]
[311905340,1705491055094,-272.8775063,0.00023664,2]
[311905341,1705491055103,-2446.69,0.00023834,2]
[311905342,1705491055114,-500.0,0.00023835,2]
[311905343,1705491055124,-500.0,0.00023835,2]
[311905344,1705491055133,-925.18,0.00023835,2]
[311905345,1705491055142,-500.0,0.00023835,2]
[311905346,1705491055152,-529.36,0.00023835,2]
[311905347,1705491055161,-517.8018221,0.00023835,2]
[311905348,1705491055170,-500.0,0.00023835,2]
[311905349,1705491055180,-572.15,0.00023835,2]
[311905350,1705491055189,-592.47,0.00023835,2]
[311905351,1705491055198,-500.0,0.00023835,2]
[311905352,1705491055207,-500.0,0.00023835,2]
[311905353,1705491055217,-1126.63,0.00023835,2]
[311905354,1705491055226,-601.93,0.00023835,2]
[311905355,1705491055235,-989.91,0.00023835,2]
[311905356,1705491055245,-500.0,0.00023835,2]
[311905357,1705491055254,-649.67,0.00023835,2]
[311905358,1705491055263,-1047.06,0.00023835,2]
[311905359,1705491055273,-766.06,0.00023835,2]
[311905360,1705491055282,-500.0,0.00023835,2]
[311905361,1705491055292,-854.03,0.00023835,2]
[311905362,1705491055301,-500.0,0.00023835,2]
[311905363,1705491055311,-500.0,0.00023835,2]
[311905364,1705491055320,-2022.47,0.00023835,2]
[311905365,1705491055329,-500.0,0.00023835,2]
[311905366,1705491055339,-1951.3,0.00023835,2]
[311905367,1705491055348,-500.0,0.00023835,2]
[311905368,1705491055358,-500.0,0.00023835,2]
[311905369,1705491055368,-935.03,0.00023835,2]
[311905370,1705491055378,-500.0,0.00023835,2]
[311905371,1705491055388,-500.0,0.00023835,2]
[311905372,1705491055398,-500.0,0.00023835,2]
[311905373,1705491055408,-1610.2,0.00023835,2]
[311905374,1705491055417,-1055.02,0.00023835,2]
[311905375,1705491055426,-1394.63,0.00023835,2]
[311905376,1705491055436,-500.0,0.00023835,2]
[311905377,1705491055446,-500.0,0.00023835,2]
[311905378,1705491055455,-500.0,0.00023835,2]
[311905379,1705491055465,-500.0,0.00023835,2]
[311905380,1705491055474,-500.0,0.00023835,2]
[311905381,1705491055484,-500.0,0.00023835,2]
[311905382,1705491055493,-500.0,0.00023835,2]
[311905383,1705491055503,-500.0,0.00023835,2]
[311905384,1705491055512,-500.0,0.00023835,2]
[311905385,1705491055522,-617.87,0.00023835,2]
[311905386,1705491055532,-500.0,0.00023835,2]
[311905387,1705491055542,-1080.69,0.00023835,2]
[311905388,1705491055551,-1459.14,0.00023835,2]
[311905389,1705491055561,-500.0,0.00023835,2]
[311905390,1705491055571,-1800.52,0.00023835,2]
[311905391,1705491055580,-500.0,0.00023835,2]
[311905392,1705491055590,-1033.23,0.00023835,2]
[311905393,1705491055599,-500.0,0.00023835,2]
[311905394,1705491055610,-1604.59,0.00023835,2]
[311905395,1705491055619,-4555.16,0.00023835,2]
[311905396,1705491055628,-660.71,0.00023835,2]
[311905397,1705491055638,-500.0,0.00023835,2]
[311905398,1705491055648,-17619.33,0.00023835,2]
[311905399,1705491055657,-500.0,0.00023835,2]
[311905400,1705491055666,-500.0,0.00023835,2]
[311905401,1705491055676,-1051.77,0.00023835,2]
[311905402,1705491055686,-500.0,0.00023835,2]
[311905403,1705491055695,-262.07533249,0.00023835,2]
[311905404,1705491055708,-500.0,0.00023835,2]
[311905405,1705491055717,-958.11,0.00023835,2]
[311905406,1705491055726,-564.29,0.00023835,2]
[311905407,1705491055737,-799.67,0.00023835,2]
[311905408,1705491055746,-500.0,0.00023835,2]
[311905409,1705491055755,-500.0,0.00023835,2]
[311905410,1705491055764,-707.76,0.00023835,2]
[311905411,1705491055775,-500.0,0.00023835,2]
[311905412,1705491055785,-500.0,0.00023835,2]
[311905413,1705491055794,-500.0,0.00023835,2]
[311905414,1705491055803,-620.01,0.00023835,2]
[311905415,1705491055813,-2941.81,0.00023835,2]
[311905416,1705491055822,-707.93,0.00023835,2]
[311905417,1705491055831,-722.36,0.00023835,2]
[311905418,1705491055840,-5000.0,0.00024,2]
[311905419,1705491055849,-201.09439878,0.00024,2]
[311905420,1705491055859,-431.45808483,0.00024,2]
[311905421,1705491055869,-159.68,0.00024061,2]
[311905422,1705491055879,-172.52,0.00024091,2]
[311905423,1705491055888,-500.0,0.00024109,2]
[311905424,1705491055897,-500.0,0.00024109,2]
[311905425,1705491055907,-925.18,0.00024109,2]
[311905426,1705491055916,-500.0,0.00024109,2]
[311905427,1705491055926,-529.36,0.00024109,2]
[311905428,1705491055935,-500.0,0.00024109,2]
[311905429,1705491055944,-572.15,0.00024109,2]
[311905430,1705491055953,-592.47,0.00024109,2]
[311905431,1705491055962,-500.0,0.00024109,2]
[311905432,1705491055972,-500.0,0.00024109,2]
[311905433,1705491055981,-1126.63,0.00024109,2]
[311905434,1705491055991,-601.93,0.00024109,2]
[311905435,1705491056000,-989.91,0.00024109,2]
[311905436,1705491056009,-500.0,0.00024109,2]
[311905437,1705491056020,-649.67,0.00024109,2]
[311905438,1705491056030,-1047.06,0.00024109,2]
[311905439,1705491056040,-766.06,0.00024109,2]
[311905440,1705491056051,-500.0,0.00024109,2]
[311905441,1705491056060,-854.03,0.00024109,2]
[311905442,1705491056071,-500.0,0.00024109,2]
[311905443,1705491056083,-390.78,0.00024109,2]
[311905444,1705491056093,-2022.47,0.00024109,2]
[311905445,1705491056104,-433.63095075,0.00024109,2]
[311905446,1705491056114,-1951.3,0.00024109,2]
[311905447,1705491056123,-500.0,0.00024109,2]
[311905448,1705491056134,-500.0,0.00024109,2]
[311905449,1705491056145,-935.03,0.00024109,2]
[311905450,1705491056155,-500.0,0.00024109,2]
[311905451,1705491056165,-436.2785893,0.00024109,2]
[311905452,1705491056174,-500.0,0.00024109,2]
[311905453,1705491056183,-1610.2,0.00024109,2]
[311905454,1705491056192,-1055.02,0.00024109,2]
[311905455,1705491056201,-1394.63,0.00024109,2]
[311905456,1705491056211,-606.58,0.00024109,2]
[311905457,1705491056221,-500.0,0.00024109,2]
[311905458,1705491056230,-400.55818501,0.00024109,2]
[311905459,1705491056240,-500.0,0.00024109,2]
[311905460,1705491056249,-500.0,0.00024109,2]
[311905461,1705491056258,-500.0,0.00024109,2]
[311905462,1705491056268,-500.0,0.00024109,2]
[311905463,1705491056277,-500.0,0.00024109,2]
[311905464,1705491056286,-500.0,0.00024109,2]
[311905465,1705491056296,-617.87,0.00024109,2]
[311905466,1705491056305,-500.0,0.00024109,2]
[311905467,1705491056315,-1080.69,0.00024109,2]
[311905468,1705491056324,-1459.14,0.00024109,2]
[311905469,1705491056333,-500.0,0.00024109,2]
[311905470,1705491056343,-1800.52,0.00024109,2]
[311905471,1705491056351,-500.0,0.00024109,2]
[311905472,1705491056362,-1033.23,0.00024109,2]
[311905473,1705491056372,-500.0,0.00024109,2]
[311905474,1705491056382,-1604.59,0.00024109,2]
[311905475,1705491056391,-4555.16,0.00024109,2]
[311905476,1705491056401,-660.71,0.00024109,2]
[311905477,1705491056411,-500.0,0.00024109,2]
[311905478,1705491056421,-17619.33,0.00024109,2]
[311905479,1705491056430,-500.0,0.00024109,2]
[311905480,1705491056439,-500.0,0.00024109,2]
[311905481,1705491056507,-1051.77,0.00024109,2]
[311905482,1705491056516,-500.0,0.00024109,2]
[311905483,1705491056526,-500.0,0.00024109,2]
[311905484,1705491056535,-958.11,0.00024109,2]
[311905485,1705491056545,-564.29,0.00024109,2]
[311905486,1705491056554,-799.67,0.00024109,2]
[311905487,1705491056563,-500.0,0.00024109,2]
[311905488,1705491056573,-500.0,0.00024109,2]
[311905489,1705491056582,-707.76,0.00024109,2]
[311905490,1705491056592,-500.0,0.00024109,2]
[311905491,1705491056602,-500.0,0.00024109,2]
[311905492,1705491056612,-500.0,0.00024109,2]
[311905493,1705491056621,-620.01,0.00024109,2]
[311905494,1705491056630,-2941.81,0.00024109,2]
[311905495,1705491056639,-707.93,0.00024109,2]
[311905496,1705491056649,-671.91552869,0.00024195,2]
[311905497,1705491056658,-1156691.22424402,0.00024383,3]
[311905498,1705491056667,-500.0,0.00024383,2]
[311905499,1705491056677,-188.60390761,0.00024383,2]
[311905500,1705491056686,-925.18,0.00024383,2]
[311905501,1705491056695,-500.0,0.00024383,2]
[311905502,1705491056708,-529.36,0.00024383,2]
[311905503,1705491056717,-500.0,0.00024383,2]
[311905504,1705491056726,-572.15,0.00024383,2]
[311905505,1705491056735,-592.47,0.00024383,2]
[311905506,1705491056745,-500.0,0.00024383,2]
[311905507,1705491056755,-500.0,0.00024383,2]
[311905508,1705491056764,-1126.63,0.00024383,2]
[311905509,1705491056774,-601.93,0.00024383,2]
[311905510,1705491056783,-989.91,0.00024383,2]
[311905511,1705491056793,-500.0,0.00024383,2]
[311905512,1705491056803,-649.67,0.00024383,2]
[311905513,1705491056812,-1047.06,0.00024383,2]
[311905514,1705491056821,-766.06,0.00024383,2]
[311905515,1705491056830,-500.0,0.00024383,2]
[311905516,1705491056840,-854.03,0.00024383,2]
[311905517,1705491056849,-500.0,0.00024383,2]
[311905518,1705491056858,-2022.47,0.00024383,2]
[311905519,1705491056868,-1951.3,0.00024383,2]
[311905520,1705491056877,-500.0,0.00024383,2]
[311905521,1705491056886,-500.0,0.00024383,2]
[311905522,1705491056896,-935.03,0.00024383,2]
[311905523,1705491056904,-500.0,0.00024383,2]
[311905524,1705491056914,-500.0,0.00024383,2]
[311905525,1705491056923,-1610.2,0.00024383,2]
[311905526,1705491056932,-1055.02,0.00024383,2]
[311905527,1705491056942,-1394.63,0.00024383,2]
[311905528,1705491056952,-500.0,0.00024383,2]
[311905529,1705491056962,-500.0,0.00024383,2]
[311905530,1705491056972,-500.0,0.00024383,2]
[311905531,1705491056983,-500.0,0.00024383,2]
[311905532,1705491056993,-500.0,0.00024383,2]
[311905533,1705491057003,-500.0,0.00024383,2]
[311905534,1705491057014,-500.0,0.00024383,2]
[311905535,1705491057023,-617.87,0.00024383,2]
[311905536,1705491057032,-410.04129803,0.00024383,2]
[311905537,1705491057042,-1080.69,0.00024383,2]
[311905538,1705491057051,-1459.14,0.00024383,2]
[311905539,1705491057060,-500.0,0.00024383,2]
[311905540,1705491057069,-1800.52,0.00024383,2]
[311905541,1705491057078,-500.0,0.00024383,2]
[311905542,1705491057087,-1033.23,0.00024383,2]
[311905543,1705491057096,-500.0,0.00024383,2]
[311905544,1705491057105,-1604.59,0.00024383,2]
[311905545,1705491057116,-4555.16,0.00024383,2]
[311905546,1705491057125,-660.71,0.00024383,2]
[311905547,1705491057134,-500.0,0.00024383,2]
[311905548,1705491057142,-17619.33,0.00024383,2]
[311905549,1705491057151,-500.0,0.00024383,2]
[311905550,1705491057161,-197.87579372,0.00024383,2]
[311905551,1705491057170,-1051.77,0.00024383,2]
[311905552,1705491057179,-500.0,0.00024383,2]
[311905553,1705491057188,-500.0,0.00024383,2]
[311905554,1705491057197,-958.11,0.00024383,2]
[311905555,1705491057206,-564.29,0.00024383,2]
[311905556,1705491057216,-799.67,0.00024383,2]
[311905557,1705491057225,-500.0,0.00024383,2]
[311905558,1705491057234,-500.0,0.00024383,2]
[311905559,1705491057243,-707.76,0.00024383,2]
[311905560,1705491057253,-500.0,0.00024383,2]
[311905561,1705491057262,-500.0,0.00024383,2]
[311905562,1705491057270,-500.0,0.00024383,2]
[311905563,1705491057280,-620.01,0.00024383,2]
[311905564,1705491057289,-2941.81,0.00024383,2]
[311905565,1705491057298,-707.93,0.00024383,2]
[311905566,1705491057308,-172.52,0.00024639,2]
[311905567,1705491057317,-500.0,0.00024656,2]
[311905568,1705491057327,-2446.69,0.00024656,2]
[311905569,1705491057337,-733.01,0.00024657,2]
[311905570,1705491057346,-500.0,0.00024657,2]
[311905571,1705491057355,-925.18,0.00024657,2]
[311905572,1705491057366,-500.0,0.00024657,2]
[311905573,1705491057378,-529.36,0.00024657,2]
[311905574,1705491057387,-500.0,0.00024657,2]
[311905575,1705491057395,-572.15,0.00024657,2]
[311905576,1705491057404,-592.47,0.00024657,2]
[311905577,1705491057413,-500.0,0.00024657,2]
[311905578,1705491057422,-500.0,0.00024657,2]
[311905579,1705491057431,-1126.63,0.00024657,2]
[311905580,1705491057440,-601.93,0.00024657,2]
[311905581,1705491057450,-989.91,0.00024657,2]
[311905582,1705491057459,-500.0,0.00024657,2]
[311905583,1705491057469,-649.67,0.00024657,2]
[311905584,1705491057478,-1047.06,0.00024657,2]
[311905585,1705491057493,-766.06,0.00024657,2]
[311905586,1705491057502,-500.0,0.00024657,2]
[311905587,1705491057511,-854.03,0.00024657,2]
[311905588,1705491057520,-500.0,0.00024657,2]
[311905589,1705491057530,-2022.47,0.00024657,2]
[311905590,1705491057539,-1951.3,0.00024657,2]
[311905591,1705491057549,-500.0,0.00024657,2]
[311905592,1705491057558,-500.0,0.00024657,2]
[311905593,1705491057567,-935.03,0.00024657,2]
[311905594,1705491057577,-339.89140798,0.00024657,2]
[311905595,1705491057586,-500.0,0.00024657,2]
[311905596,1705491057596,-1610.2,0.00024657,2]
[311905597,1705491057606,-1055.02,0.00024657,2]
[311905598,1705491057617,-1394.63,0.00024657,2]
[311905599,1705491057627,-500.0,0.00024657,2]
[311905600,1705491057638,-500.0,0.00024657,2]
[311905601,1705491057647,-500.0,0.00024657,2]
[311905602,1705491057660,-500.0,0.00024657,2]
[311905603,1705491057670,-500.0,0.00024657,2]
[311905604,1705491057680,-177.98917022,0.00024657,2]
[311905605,1705491057693,-150.35067244,0.00024657,2]
[311905606,1705491057703,-617.87,0.00024657,2]
[311905607,1705491057713,-1080.69,0.00024657,2]
[311905608,1705491057722,-1459.14,0.00024657,2]
[311905609,1705491057732,-500.0,0.00024657,2]
[311905610,1705491057741,-1800.52,0.00024657,2]
[311905611,1705491057752,-500.0,0.00024657,2]
[311905612,1705491057761,-1033.23,0.00024657,2]
[311905613,1705491057770,-500.0,0.00024657,2]
[311905614,1705491057784,-1604.59,0.00024657,2]
[311905615,1705491057794,-4555.16,0.00024657,2]
[311905616,1705491057803,-660.71,0.00024657,2]
[311905617,1705491057812,-594.07922057,0.00024657,2]
[311905618,1705491057822,-17619.33,0.00024657,2]
[311905619,1705491057830,-500.0,0.00024657,2]
[311905620,1705491057840,-1051.77,0.00024657,2]
[311905621,1705491057849,-500.0,0.00024657,2]
[311905622,1705491057860,-500.0,0.00024657,2]
[311905623,1705491057870,-958.11,0.00024657,2]
[311905624,1705491057879,-564.29,0.00024657,2]
[311905625,1705491057888,-799.67,0.00024657,2]
[311905626,1705491057897,-500.0,0.00024657,2]
[311905627,1705491057906,-500.0,0.00024657,2]
[311905628,1705491057915,-707.76,0.00024657,2]
[311905629,1705491057924,-500.0,0.00024657,2]
[311905630,1705491057934,-500.0,0.00024657,2]
[311905631,1705491057943,-500.0,0.00024657,2]
[311905632,1705491057953,-620.01,0.00024657,2]
[311905633,1705491057963,-2941.81,0.00024657,2]
[311905634,1705491057972,-707.93,0.00024657,2]
[311905635,1705491057982,-250.0,0.00024658,2]
[311905636,1705491057991,-174.75,0.0002477,2]
[311905637,1705491058000,-500.0,0.00024931,2]
[311905638,1705491058009,-925.18,0.00024931,2]
[311905639,1705491058018,-500.0,0.00024931,2]
[311905640,1705491058027,-529.36,0.00024931,2]
[311905641,1705491058036,-500.0,0.00024931,2]
[311905642,1705491058045,-572.15,0.00024931,2]
[311905643,1705491058054,-592.47,0.00024931,2]
[311905644,1705491058062,-500.0,0.00024931,2]
[311905645,1705491058071,-500.0,0.00024931,2]
[311905646,1705491058080,-1126.63,0.00024931,2]
[311905647,1705491058089,-601.93,0.00024931,2]
[311905648,1705491058098,-989.91,0.00024931,2]
[311905649,1705491058108,-500.0,0.00024931,2]
[311905650,1705491058117,-649.67,0.00024931,2]
[311905651,1705491058126,-1017.33244441,0.00024931,2]
[311905652,1705491058400,-29.72755559,0.00024931,2]
[311905653,1705491058410,-766.06,0.00024931,2]
[311905654,1705491058421,-500.0,0.00024931,2]
[311905655,1705491058430,-854.03,0.00024931,2]
[311905656,1705491058440,-500.0,0.00024931,2]
[311905657,1705491058449,-2022.47,0.00024931,2]
[311905658,1705491058458,-1951.3,0.00024931,2]
[311905659,1705491058467,-500.0,0.00024931,2]
[311905660,1705491058477,-500.0,0.00024931,2]
[311905661,1705491058486,-935.03,0.00024931,2]
[311905662,1705491058495,-500.0,0.00024931,2]
[311905663,1705491058505,-1610.2,0.00024931,2]
[311905664,1705491058515,-1055.02,0.00024931,2]
[311905665,1705491058525,-1394.63,0.00024931,2]
[311905666,1705491058534,-328.84000001,0.00024931,2]
[311905667,1705491058543,-500.0,0.00024931,2]
[311905668,1705491058553,-500.0,0.00024931,2]
[311905669,1705491058562,-500.0,0.00024931,2]
[311905670,1705491058571,-500.0,0.00024931,2]
[311905671,1705491058580,-617.87,0.00024931,2]
[311905672,1705491058590,-1080.69,0.00024931,2]
[311905673,1705491058599,-1459.14,0.00024931,2]
[311905674,1705491058609,-500.0,0.00024931,2]
[311905675,1705491058618,-1800.52,0.00024931,2]
[311905676,1705491058628,-500.0,0.00024931,2]
[311905677,1705491058637,-1033.23,0.00024931,2]
[311905678,1705491058646,-505.79154721,0.00024931,2]
[311905679,1705491058655,-1604.59,0.00024931,2]
[311905680,1705491058664,-4555.16,0.00024931,2]
[311905681,1705491058674,-660.71,0.00024931,2]
[311905682,1705491058685,-10056.23788978,0.00024931,2]
[311905683,1705491058699,-7563.09211022,0.00024931,2]
[311905684,1705491058709,-500.0,0.00024931,2]
[311905685,1705491058719,-1051.77,0.00024931,2]
[311905686,1705491058728,-500.0,0.00024931,2]
[311905687,1705491058738,-500.0,0.00024931,2]
[311905688,1705491058748,-958.11,0.00024931,2]
[311905689,1705491058758,-564.29,0.00024931,2]
[311905690,1705491058768,-799.67,0.00024931,2]
[311905691,1705491058778,-500.0,0.00024931,2]
[311905692,1705491058786,-500.0,0.00024931,2]
[311905693,1705491058795,-707.76,0.00024931,2]
[311905694,1705491058804,-500.0,0.00024931,2]
[311905695,1705491058813,-500.0,0.00024931,2]
[311905696,1705491058822,-500.0,0.00024931,2]
[311905697,1705491058831,-620.01,0.00024931,2]
[311905698,1705491058840,-2941.81,0.00024931,2]
[311905699,1705491058849,-707.93,0.00024931,2]
[311905700,1705491058858,-151.17074475,0.00024946,2]
[311905701,1705491058866,-933.54918924,0.00025,2]
[311905702,1705491058876,-1583.8032876,0.00025,2]
[311905703,1705491058885,-303.39738056,0.00025,2]
[311905704,1705491058894,-200.91002189,0.00025,2]
[311905705,1705491058902,-201.98827283,0.00025,2]
[311905706,1705491058911,-158.65039207,0.00025,2]
[311905707,1705491058920,-650.0,0.00025,2]
[311905708,1705491058929,-1250.0,0.00025,3]
[311905709,1705491058937,-1000.0,0.00025025,2]
[311905710,1705491058947,-322.79019141,0.00025025,2]
[311905711,1705491058956,-172.52,0.00025187,2]
[311905712,1705491058965,-500.0,0.00025205,2]
[311905713,1705491058974,-925.18,0.00025205,2]
[311905714,1705491058983,-500.0,0.00025205,2]
[311905715,1705491058992,-529.36,0.00025205,2]
[311905716,1705491059001,-193.65570986,0.00025205,2]
[311905717,1705491059010,-572.15,0.00025205,2]
[311905718,1705491059019,-592.47,0.00025205,2]
[311905719,1705491059027,-500.0,0.00025205,2]
[311905720,1705491059036,-500.0,0.00025205,2]
[311905721,1705491059045,-1126.63,0.00025205,2]
[311905722,1705491059054,-601.93,0.00025205,2]
[311905723,1705491059064,-989.91,0.00025205,2]
[311905724,1705491059072,-500.0,0.00025205,2]
[311905725,1705491059081,-649.67,0.00025205,2]
[311905726,1705491059090,-1047.06,0.00025205,2]
[311905727,1705491059099,-766.06,0.00025205,2]
[311905728,1705491059109,-500.0,0.00025205,2]
[311905729,1705491059118,-854.03,0.00025205,2]
[311905730,1705491059128,-500.0,0.00025205,2]
[311905731,1705491059137,-2022.47,0.00025205,2]
[311905732,1705491059147,-1951.3,0.00025205,2]
[311905733,1705491059156,-574.20774685,0.00025205,2]
[311905734,1705491059166,-500.0,0.00025205,2]
[311905735,1705491059174,-935.03,0.00025205,2]
[311905736,1705491059184,-500.0,0.00025205,2]
[311905737,1705491059193,-1610.2,0.00025205,2]
[311905738,1705491059202,-1055.02,0.00025205,2]
[311905739,1705491059211,-1394.63,0.00025205,2]
[311905740,1705491059220,-156.19,0.00025205,2]
[311905741,1705491059230,-500.0,0.00025205,2]
[311905742,1705491059240,-500.0,0.00025205,2]
[311905743,1705491059249,-500.0,0.00025205,2]
[311905744,1705491059259,-617.87,0.00025205,2]
[311905745,1705491059269,-1080.69,0.00025205,2]
[311905746,1705491059278,-1459.14,0.00025205,2]
[311905747,1705491059288,-531.99,0.00025205,2]
[311905748,1705491059298,-1800.52,0.00025205,2]
[311905749,1705491059307,-500.0,0.00025205,2]
[311905750,1705491059317,-1033.23,0.00025205,2]
[311905751,1705491059328,-1604.59,0.00025205,2]
[311905752,1705491059340,-4555.16,0.00025205,2]
[311905753,1705491059351,-660.71,0.00025205,2]
[311905754,1705491059362,-17619.33,0.00025205,2]
[311905755,1705491059372,-500.0,0.00025205,2]
[311905756,1705491059382,-1051.77,0.00025205,2]
[311905757,1705491059392,-500.0,0.00025205,2]
[311905758,1705491059402,-500.0,0.00025205,2]
[311905759,1705491059411,-958.11,0.00025205,2]
[311905760,1705491059422,-564.29,0.00025205,2]
[311905761,1705491059431,-799.67,0.00025205,2]
[311905762,1705491059442,-636.94952398,0.00025205,2]
[311905763,1705491059452,-500.0,0.00025205,2]
[311905764,1705491059461,-707.76,0.00025205,2]
[311905765,1705491059471,-500.0,0.00025205,2]
[311905766,1705491059482,-637.42486255,0.00025205,2]
[311905767,1705491059492,-500.0,0.00025205,2]
[311905768,1705491059502,-620.01,0.00025205,2]
[311905769,1705491059512,-2941.81,0.00025205,2]
[311905770,1705491059522,-707.93,0.00025205,2]
[311905771,1705491059531,-500.0,0.00025257,2]
[311905772,1705491059541,-159.68,0.00025306,2]
[311905773,1705491059551,-279.54,0.00025357,2]
[311905774,1705491059561,-845.0,0.00025361,2]
[311905775,1705491059570,-967.9047,0.00025379,2]
[311905776,1705491059580,-671.91552869,0.00025384,2]
[311905777,1705491059591,-500.0,0.00025479,2]
[311905778,1705491059601,-925.18,0.00025479,2]
[311905779,1705491059612,-500.0,0.00025479,2]
[311905780,1705491059622,-529.36,0.00025479,2]
[311905781,1705491059632,-572.15,0.00025479,2]
[311905782,1705491059642,-592.47,0.00025479,2]
[311905783,1705491059651,-500.0,0.00025479,2]
[311905784,1705491059662,-500.0,0.00025479,2]
[311905785,1705491059672,-1126.63,0.00025479,2]
[311905786,1705491059681,-601.93,0.00025479,2]
[311905787,1705491059691,-989.91,0.00025479,2]
[311905788,1705491059704,-500.0,0.00025479,2]
[311905789,1705491059715,-649.67,0.00025479,2]
[311905790,1705491059726,-1047.06,0.00025479,2]
[311905791,1705491059736,-766.06,0.00025479,2]
[311905792,1705491059749,-500.0,0.00025479,2]
[311905793,1705491059759,-854.03,0.00025479,2]
[311905794,1705491059769,-500.0,0.00025479,2]
[311905795,1705491059780,-2022.47,0.00025479,2]
[311905796,1705491059790,-1951.3,0.00025479,2]
[311905797,1705491059800,-500.0,0.00025479,2]
[311905798,1705491059809,-935.03,0.00025479,2]
[311905799,1705491059819,-500.0,0.00025479,2]
[311905800,1705491059829,-1610.2,0.00025479,2]
[311905801,1705491059839,-1055.02,0.00025479,2]
[311905802,1705491059848,-1394.63,0.00025479,2]
[311905803,1705491059859,-500.0,0.00025479,2]
[311905804,1705491059868,-500.0,0.00025479,2]
[311905805,1705491059878,-500.0,0.00025479,2]
[311905806,1705491059888,-617.87,0.00025479,2]
[311905807,1705491059898,-1080.69,0.00025479,2]